[Event "NSV Open-ch Rapid 2019"]
[Site "Lueneburg"]
[Date "2019.08.03"]
[Round "4.21"]
[White "Rothenberg, Jannik"]
[Black "Marzik, Arne"]
[Result "1/2-1/2"]
[ECO "A52"]
[WhiteElo "1859"]
[BlackElo "1366"]
[Annotator "NA RC"]
[PlyCount "94"]
[EventDate "2019.08.03"]
[EventType "swiss"]
[EventCountry "GER"]
[SourceTitle "playchess.com"]
[Source "ChessBase"]
[SourceQuality "1"]
[TimeControl "600+5"]

1. d4 {[%emt 0:00:00]} Nf6 {[%emt 0:00:00]} 2. c4 {[%emt 0:00:00]} e5 {[%emt 0:00:00]} 3. dxe5 {[%emt 0:00:03]} Ng4 {[%emt 0:00:00]} 4. Bf4 {[%emt 0:00:01]} Nc6 {[%emt 0:00:02]} 5. Nf3 {[%emt 0:00:01]} Bb4+ {[%emt 0:00:04]} 6. Nc3 {[%emt 0:00:02]} Qe7 {[%emt 0:00:05]} 7. Qd5 {[%emt 0:00:01]} Bxc3+ {[%emt 0:00:02]} 8. bxc3 {[%emt 0:00:02]} f6 {[%emt 0:00:03]} 9. exf6 {[%emt 0:00:05]} Nxf6 {[%emt 0:00:02]} 10. Qd3 {[%emt 0:00:08]} d6 {[%emt 0:00:04]} 11. e3 {[%emt 0:00:12]} O-O {[%emt 0:00:21]} 12. Be2 {[%emt 0:00:08]} b6 {[%emt 0:00:11]} 13. Nd4 {[%emt 0:00:33]} Ne5 {[%emt 0:00:59]} 14. Qd1 {[%emt 0:00:22]} Bb7 {[%emt 0:00:14]} 15. Nf3 {[%emt 0:00:50]} Rad8 {[%emt 0:01:04]} 16. O-O {[%emt 0:00:39]} Ne4 {[%emt 0:00:29]} 17. Qc2 {[%emt 0:00:16]} Nc5 {[%emt 0:00:19]} 18. a4 {[%emt 0:00:37]} Nxf3+ {[%emt 0:01:02]} 19. Bxf3 {[%emt 0:00:06]} Bxf3 {[%emt 0:00:03]} 20. gxf3 {[%emt 0:00:03]} a5 {[%emt 0:01:07]} 21. Kh1 {[%emt 0:00:05]} Qf7 {[%emt 0:00:35]} 22. Qe2 {[%emt 0:00:18]} Ne6 {[%emt 0:01:17]} 23. Bg3 {[%emt 0:00:32]} Qxf3+ {[%emt 0:00:48]} 24. Qxf3 {[%emt 0:00:01]} Rxf3 {[%emt 0:00:01]} 25. Rfd1 {[%emt 0:00:37]} Nc5 {[%emt 0:01:01]} 26. Rd4 {[%emt 0:00:07]} Rdf8 {[%emt 0:00:34]} 27. Kg2 {[%emt 0:00:01]} R3f5 {[%emt 0:00:18]} 28. h3 {[%emt 0:00:19]} Nb3 {[%emt 0:00:17]} 29. Rdd1 {[%emt 0:00:07]} Nxa1 {[%emt 0:00:02]} 30. Rxa1 {[%emt 0:00:01]} Rc5 {[%emt 0:00:03]} 31. Kf1 {[%emt 0:00:23]} Rxc4 {[%emt 0:00:02]} 32. Ra3 {[%emt 0:00:01]} Rf5 {[%emt 0:00:20]} 33. Ke2 {[%emt 0:00:03]} Rh5 {[%emt 0:00:13]} 34. Kd3 {[%emt 0:00:10]} Rcc5 {[%emt 0:00:08]} 35. h4 {[%emt 0:00:06]} g5 {[%emt 0:00:18]} 36. hxg5 {[%emt 0:00:04]} Rhxg5 {[%emt 0:00:03]} 37. Bf4 {[%emt 0:00:19]} Rg6 {[%emt 0:00:16]} 38. Ra1 {[%emt 0:00:04]} h5 {[%emt 0:00:03]} 39. Rh1 {[%emt 0:00:01]} Rg2 {[%emt 0:00:06]} 40. f3 {[%emt 0:00:04]} Ra2 {[%emt 0:00:06]} 41. Rg1+ {[%emt 0:00:05]} Kf7 {[%emt 0:00:06]} 42. Bh6 {[%emt 0:00:04]} Rxa4 {[%emt 0:00:23]} 43. Rg7+ {[%emt 0:00:01]} Ke6 {[%emt 0:00:01]} 44. Rg6+ {[%emt 0:00:20]} Kd7 {[%emt 0:00:13]} 45. Rg7+ {[%emt 0:00:02]} Ke6 {[%emt 0:00:01]} 46. Rg6+ {[%emt 0:00:01]} Kd7 {[%emt 0:00:02]} 47. Rg7+ {[%emt 0:00:01]} Ke6 {[%emt 0:00:27]} 1/2-1/2

[Event "NSV Open-ch Rapid 2019"]
[Site "Lueneburg"]
[Date "2019.08.03"]
[Round "4.22"]
[White "Harnack, Bernhard"]
[Black "Rempe, Jonas"]
[Result "0-1"]
[ECO "C20"]
[WhiteElo "1712"]
[BlackElo "1839"]
[Annotator "NA RC"]
[PlyCount "112"]
[EventDate "2019.08.03"]
[EventType "swiss"]
[EventCountry "GER"]
[SourceTitle "playchess.com"]
[Source "ChessBase"]
[SourceQuality "1"]
[TimeControl "600+5"]

1. e4 {[%emt 0:00:00]} e5 {[%emt 0:00:00]} 2. g3 {[%emt 0:00:00]} Nf6 {[%emt 0:00:01]} 3. Bg2 {[%emt 0:00:00]} Nc6 {[%emt 0:00:10]} 4. Ne2 {[%emt 0:00:11]} d5 {[%emt 0:00:08]} 5. exd5 {[%emt 0:00:08]} Nxd5 {[%emt 0:00:01]} 6. O-O {[%emt 0:00:03]} Be6 {[%emt 0:00:06]} 7. c3 {[%emt 0:00:22]} Qd7 {[%emt 0:00:04]} 8. d4 {[%emt 0:00:13]} O-O-O {[%emt 0:00:03]} 9. dxe5 {[%emt 0:00:36]} Nxe5 {[%emt 0:00:01]} 10. Bf4 {[%emt 0:00:27]} f6 {[%emt 0:01:00]} 11. Na3 {[%emt 0:00:23]} Bh3 {[%emt 0:00:09]} 12. Bxe5 {[%emt 0:00:24]} fxe5 {[%emt 0:00:04]} 13. Qb3 {[%emt 0:00:29]} Bxg2 {[%emt 0:00:18]} 14. Kxg2 {[%emt 0:00:02]} Qg4 {[%emt 0:00:02]} 15. Rae1 {[%emt 0:00:29]} Nf4+ {[%emt 0:00:57]} 16. Nxf4 {[%emt 0:00:16]} exf4 {[%emt 0:00:01]} 17. h3 {[%emt 0:00:20]} Qg5 {[%emt 0:00:45]} 18. Qe6+ {[%emt 0:00:29]} Kb8 {[%emt 0:00:05]} 19. Nc4 {[%emt 0:00:40]} fxg3 {[%emt 0:00:24]} 20. fxg3 {[%emt 0:00:03]} Bd6 {[%emt 0:00:03]} 21. Nxd6 {[%emt 0:00:16]} Rxd6 {[%emt 0:00:02]} 22. Qe3 {[%emt 0:01:39]} Rd2+ {[%emt 0:02:15]} 23. Rf2 {[%emt 0:00:12]} Qd5+ {[%emt 0:00:01]} 24. Kg1 {[%emt 0:00:21]} Rxf2 {[%emt 0:00:16]} 25. Qe8+ {[%emt 0:00:54]} Qd8 {[%emt 0:00:03]} 26. Qxd8+ {[%emt 0:00:01]} Rxd8 {[%emt 0:00:01]} 27. Kxf2 {[%emt 0:00:02]} b6 {[%emt 0:00:01]} 28. Re2 {[%emt 0:00:12]} Kb7 {[%emt 0:00:09]} 29. c4 {[%emt 0:00:05]} Kc6 {[%emt 0:00:11]} 30. b3 {[%emt 0:00:06]} Rd7 {[%emt 0:00:01]} 31. a3 {[%emt 0:00:33]} Kc5 {[%emt 0:00:04]} 32. Ke3 {[%emt 0:00:12]} Re7+ {[%emt 0:00:20]} 33. Kd3 {[%emt 0:00:04]} Rxe2 {[%emt 0:00:01]} 34. Kxe2 {[%emt 0:00:01]} Kd4 {[%emt 0:00:01]} 35. Kd2 {[%emt 0:00:03]} c5 {[%emt 0:00:01]} 36. g4 {[%emt 0:00:12]} g5 {[%emt 0:00:01]} 37. Kc2 {[%emt 0:00:17]} Ke3 {[%emt 0:00:02]} 38. b4 {[%emt 0:00:04]} Kf3 {[%emt 0:00:02]} 39. bxc5 {[%emt 0:00:52]} bxc5 {[%emt 0:00:01]} 40. Kd3 {[%emt 0:00:09]} a6 {[%emt 0:00:16]} 41. a4 {[%emt 0:00:15]} a5 {[%emt 0:00:00]} 42. Kd2 {[%emt 0:00:15]} Kg3 {[%emt 0:00:01]} 43. Ke3 {[%emt 0:00:09]} Kxh3 {[%emt 0:00:02]} 44. Ke4 {[%emt 0:00:04]} Kxg4 {[%emt 0:00:02]} 45. Kd5 {[%emt 0:00:01]} h5 {[%emt 0:00:01]} 46. Kxc5 {[%emt 0:00:02]} h4 {[%emt 0:00:01]} 47. Kd6 {[%emt 0:00:03]} h3 {[%emt 0:00:01]} 48. c5 {[%emt 0:00:01]} h2 {[%emt 0:00:01]} 49. c6 {[%emt 0:00:01]} h1=Q {[%emt 0:00:02]} 50. c7 {[%emt 0:00:08]} Qd1+ {[%emt 0:00:11]} 51. Ke7 {[%emt 0:00:01]} Qe2+ {[%emt 0:00:01]} 52. Kd8 {[%emt 0:00:02]} Qd3+ {[%emt 0:00:02]} 53. Ke7 {[%emt 0:00:02]} Qe4+ {[%emt 0:00:01]} 54. Kd8 {[%emt 0:00:02]} Qd4+ {[%emt 0:00:04]} 55. Ke7 {[%emt 0:00:02]} Qe5+ {[%emt 0:00:03]} 56. Kd8 {[%emt 0:00:04]} Qd6+ {[%emt 0:00:02]} 0-1

[Event "NSV Open-ch Rapid 2019"]
[Site "Lueneburg"]
[Date "2019.08.03"]
[Round "4.23"]
[White "Rick, Niklas Corvin"]
[Black "Doederlein, Etienne"]
[Result "1/2-1/2"]
[ECO "A84"]
[WhiteElo "1444"]
[BlackElo "1868"]
[Annotator "NA RC"]
[PlyCount "101"]
[EventDate "2019.08.03"]
[EventType "swiss"]
[EventCountry "GER"]
[SourceTitle "playchess.com"]
[Source "ChessBase"]
[SourceQuality "1"]
[TimeControl "600+5"]

1. d4 {[%emt 0:00:00]} e6 {[%emt 0:00:00]} 2. c4 {[%emt 0:00:00]} f5 {[%emt 0:00:03]} 3. Nf3 {[%emt 0:00:09]} Nf6 {[%emt 0:00:02]} 4. Bf4 {[%emt 0:00:12]} Be7 {[%emt 0:00:04]} 5. e3 {[%emt 0:00:02]} c6 {[%emt 0:00:02]} 6. Nc3 {[%emt 0:00:20]} d5 {[%emt 0:00:01]} 7. cxd5 {[%emt 0:00:07]} cxd5 {[%emt 0:00:02]} 8. Be2 {[%emt 0:00:12]} O-O {[%emt 0:00:04]} 9. O-O {[%emt 0:00:03]} Nc6 {[%emt 0:00:01]} 10. Rc1 {[%emt 0:00:20]} Ne4 {[%emt 0:00:02]} 11. Nb5 {[%emt 0:00:14]} a6 {[%emt 0:00:14]} 12. Nc7 {[%emt 0:00:06]} Ra7 {[%emt 0:00:06]} 13. Nd2 {[%emt 0:00:36]} g5 {[%emt 0:00:42]} 14. Be5 {[%emt 0:00:39]} Nd6 {[%emt 0:00:49]} 15. Nxa6 {[%emt 0:00:23]} Nxe5 {[%emt 0:00:34]} 16. dxe5 {[%emt 0:00:05]} Nc4 {[%emt 0:00:19]} 17. Nxc4 {[%emt 0:00:18]} dxc4 {[%emt 0:00:07]} 18. Qxd8 {[%emt 0:00:14]} Rxd8 {[%emt 0:00:08]} 19. Bxc4 {[%emt 0:00:02]} bxa6 {[%emt 0:00:06]} 20. f4 {[%emt 0:00:35]} g4 {[%emt 0:00:07]} 21. h3 {[%emt 0:00:14]} h5 {[%emt 0:00:07]} 22. hxg4 {[%emt 0:00:06]} hxg4 {[%emt 0:00:01]} 23. Kf2 {[%emt 0:00:02]} Rd2+ {[%emt 0:00:17]} 24. Kg3 {[%emt 0:00:02]} Kg7 {[%emt 0:01:44]} 25. Bb3 {[%emt 0:00:08]} Bb7 {[%emt 0:00:20]} 26. Rf2 {[%emt 0:00:32]} Rxf2 27. Kxf2 {[%emt 0:00:01]} Bd5 {[%emt 0:01:21]} 28. Bxd5 {[%emt 0:00:03]} exd5 {[%emt 0:00:00]} 29. Rc6 {[%emt 0:00:12]} a5 {[%emt 0:00:17]} 30. Ke2 {[%emt 0:00:12]} Rb7 {[%emt 0:00:11]} 31. b3 {[%emt 0:00:02]} a4 {[%emt 0:00:28]} 32. Rc3 {[%emt 0:00:27]} axb3 {[%emt 0:00:06]} 33. Rxb3 {[%emt 0:00:01]} Ra7 {[%emt 0:00:13]} 34. Rb2 {[%emt 0:00:11]} Kf7 {[%emt 0:00:27]} 35. Kd3 {[%emt 0:00:10]} Bc5 {[%emt 0:00:12]} 36. Rb5 {[%emt 0:00:39]} Ra3+ {[%emt 0:00:01]} 37. Kc2 {[%emt 0:00:12]} Rxa2+ {[%emt 0:00:26]} 38. Kb3 {[%emt 0:00:01]} Ra3+ {[%emt 0:00:18]} 39. Kb2 {[%emt 0:00:08]} Rxe3 {[%emt 0:00:25]} 40. Rxc5 {[%emt 0:00:06]} Re2+ {[%emt 0:00:01]} 41. Rc2 {[%emt 0:00:01]} Re4 {[%emt 0:00:08]} 42. Rd2 {[%emt 0:00:07]} Ke6 {[%emt 0:00:01]} 43. g3 {[%emt 0:00:07]} Re3 {[%emt 0:00:03]} 44. Rg2 {[%emt 0:00:04]} d4 {[%emt 0:00:06]} 45. Kc2 {[%emt 0:00:03]} Kd5 {[%emt 0:00:01]} 46. Kd2 {[%emt 0:00:01]} Ra3 {[%emt 0:00:01]} 47. Rg1 {[%emt 0:00:22]} Ra2+ {[%emt 0:00:28]} 48. Kd3 {[%emt 0:00:01]} Ra3+ {[%emt 0:00:01]} 49. Kd2 {[%emt 0:00:01]} Rxg3 {[%emt 0:02:48]} 50. Re1 Re3 {[%emt 0:00:05]} 51. e6 1/2-1/2

[Event "NSV Open-ch Rapid 2019"]
[Site "Lueneburg"]
[Date "2019.08.03"]
[Round "4.25"]
[White "Kueck, Alexander"]
[Black "Schubert, Karl Heinz"]
[Result "1-0"]
[ECO "A21"]
[WhiteElo "1374"]
[BlackElo "1335"]
[Annotator "NA RC"]
[PlyCount "49"]
[EventDate "2019.08.03"]
[EventType "swiss"]
[EventCountry "GER"]
[SourceTitle "playchess.com"]
[Source "ChessBase"]
[SourceQuality "1"]
[TimeControl "600+5"]

1. c4 {[%emt 0:00:00]} e5 {[%emt 0:00:00]} 2. Nc3 {[%emt 0:00:00]} Nf6 {[%emt 0:00:00]} 3. e3 {[%emt 0:00:16]} Bb4 {[%emt 0:00:07]} 4. Qc2 {[%emt 0:00:04]} Nc6 {[%emt 0:00:07]} 5. Nge2 {[%emt 0:00:31]} d5 {[%emt 0:00:21]} 6. cxd5 {[%emt 0:00:21]} Nxd5 {[%emt 0:00:03]} 7. Nxd5 {[%emt 0:00:23]} Qxd5 {[%emt 0:00:05]} 8. Nc3 {[%emt 0:00:17]} Qe6 {[%emt 0:00:09]} 9. b3 {[%emt 0:00:14]} Qf6 {[%emt 0:00:19]} 10. Nd5 {[%emt 0:00:36]} Qd6 {[%emt 0:00:08]} 11. Bc4 {[%emt 0:00:32]} Be6 {[%emt 0:00:09]} 12. Nxb4 {[%emt 0:00:43]} Nxb4 {[%emt 0:00:03]} 13. Qc3 {[%emt 0:00:12]} Nc6 {[%emt 0:00:27]} 14. Bb2 {[%emt 0:00:25]} O-O-O {[%emt 0:00:08]} 15. O-O-O {[%emt 0:00:09]} Nb4 {[%emt 0:00:24]} 16. Qxe5 {[%emt 0:00:46]} Qa6 {[%emt 0:00:23]} 17. Bxa6 {[%emt 0:00:10]} Nxa6 {[%emt 0:00:10]} 18. Qxg7 {[%emt 0:00:12]} Rhg8 {[%emt 0:00:07]} 19. Qxh7 {[%emt 0:00:13]} Nb4 {[%emt 0:00:09]} 20. Kb1 {[%emt 0:00:21]} Nd3 {[%emt 0:00:14]} 21. f4 {[%emt 0:00:36]} Nf2 {[%emt 0:00:06]} 22. Qc2 {[%emt 0:00:20]} Nxh1 {[%emt 0:00:11]} 23. Rxh1 {[%emt 0:00:01]} Rd6 {[%emt 0:00:14]} 24. Be5 {[%emt 0:00:04]} Rd5 {[%emt 0:00:10]} 25. Qxc7# {[%emt 0:04:39]} 1-0

[Event "NSV Open-ch Rapid 2019"]
[Site "Lueneburg"]
[Date "2019.08.03"]
[Round "5.10"]
[White "Kotyk, Michael"]
[Black "Joppien, Arne"]
[Result "1-0"]
[ECO "B11"]
[WhiteElo "1998"]
[BlackElo "1940"]
[Annotator "NA RC"]
[PlyCount "57"]
[EventDate "2019.08.03"]
[EventType "swiss"]
[EventCountry "GER"]
[SourceTitle "playchess.com"]
[Source "ChessBase"]
[SourceQuality "1"]
[TimeControl "600+5"]

1. e4 {[%emt 0:00:00]} c6 {[%emt 0:00:00]} 2. Nc3 {[%emt 0:00:00]} d5 {[%emt 0:00:00]} 3. Qe2 {[%emt 0:00:00]} d4 {[%emt 0:00:03]} 4. Nd1 {[%emt 0:00:00]} e5 {[%emt 0:00:05]} 5. d3 {[%emt 0:00:00]} c5 {[%emt 0:00:07]} 6. g3 {[%emt 0:00:01]} Nc6 {[%emt 0:00:02]} 7. f4 {[%emt 0:00:01]} g6 {[%emt 0:00:14]} 8. Nf3 {[%emt 0:00:02]} Bg7 {[%emt 0:00:02]} 9. Nf2 {[%emt 0:00:15]} Nge7 {[%emt 0:00:03]} 10. Bg2 {[%emt 0:00:02]} O-O {[%emt 0:00:07]} 11. O-O {[%emt 0:00:01]} f5 {[%emt 0:00:21]} 12. exf5 {[%emt 0:00:03]} Bxf5 {[%emt 0:00:31]} 13. fxe5 {[%emt 0:00:10]} h6 {[%emt 0:00:40]} 14. Ne4 {[%emt 0:00:20]} b6 {[%emt 0:00:52]} 15. Nd6 {[%emt 0:00:08]} Bg4 {[%emt 0:00:46]} 16. Nc4 {[%emt 0:00:34]} b5 {[%emt 0:00:42]} 17. Nd6 {[%emt 0:00:03]} Rb8 {[%emt 0:00:05]} 18. a4 {[%emt 0:00:53]} a6 {[%emt 0:00:38]} 19. axb5 {[%emt 0:00:26]} axb5 {[%emt 0:00:01]} 20. Ne4 {[%emt 0:00:01]} Qb6 {[%emt 0:00:51]} 21. Nf6+ {[%emt 0:00:16]} Bxf6 {[%emt 0:00:36]} 22. exf6 {[%emt 0:00:02]} Rxf6 {[%emt 0:00:10]} 23. Bxh6 {[%emt 0:00:06]} Kh7 {[%emt 0:00:36]} 24. Ng5+ {[%emt 0:00:10]} Kxh6 {[%emt 0:00:06]} 25. Qxg4 {[%emt 0:00:01]} Nf5 {[%emt 0:01:24]} 26. Qh3+ {[%emt 0:00:03]} Kg7 {[%emt 0:00:08]} 27. Qh7+ {[%emt 0:00:02]} Kf8 {[%emt 0:00:02]} 28. Qh8+ {[%emt 0:00:04]} Ke7 {[%emt 0:00:11]} 29. Rae1+ {[%emt 0:00:01]} 1-0

[Event "NSV Open-ch Rapid 2019"]
[Site "Lueneburg"]
[Date "2019.08.03"]
[Round "5.13"]
[White "Chennaoui, Yasin"]
[Black "Egelriede, Nikolas"]
[Result "1-0"]
[ECO "A12"]
[WhiteElo "2092"]
[BlackElo "1865"]
[Annotator "NA RC"]
[PlyCount "73"]
[EventDate "2019.08.03"]
[EventType "swiss"]
[EventCountry "GER"]
[SourceTitle "playchess.com"]
[Source "ChessBase"]
[SourceQuality "1"]
[TimeControl "600+5"]

1. g3 {[%emt 0:00:00]} d5 {[%emt 0:00:00]} 2. Bg2 {[%emt 0:00:00]} Nf6 {[%emt 0:00:00]} 3. c4 {[%emt 0:00:00]} c6 {[%emt 0:10:15]} 4. Nf3 {[%emt 0:00:04]} Bf5 {[%emt 0:00:00]} 5. O-O {[%emt 0:00:08]} e6 {[%emt 0:00:00]} 6. b3 {[%emt 0:00:03]} Be7 {[%emt 0:00:00]} 7. Bb2 {[%emt 0:00:01]} O-O {[%emt 0:00:00]} 8. d3 {[%emt 0:00:05]} h6 {[%emt 0:00:00]} 9. Nbd2 {[%emt 0:00:03]} Nbd7 {[%emt 0:00:00]} 10. Ne5 {[%emt 0:00:11]} Nxe5 {[%emt 0:00:00]} 11. Bxe5 {[%emt 0:00:01]} Nd7 {[%emt 0:00:00]} 12. Bb2 {[%emt 0:00:02]} Re8 {[%emt 0:00:00]} 13. Nf3 {[%emt 0:00:25]} Bd6 {[%emt 0:00:00]} 14. Re1 {[%emt 0:00:47]} Qe7 {[%emt 0:00:00]} 15. cxd5 {[%emt 0:00:38]} cxd5 {[%emt 0:00:00]} 16. e4 {[%emt 0:00:03]} dxe4 {[%emt 0:00:00]} 17. dxe4 {[%emt 0:00:02]} Bg4 {[%emt 0:00:00]} 18. Qd4 {[%emt 0:00:18]} e5 {[%emt 0:00:00]} 19. Qd5 {[%emt 0:00:02]} b6 {[%emt 0:00:00]} 20. Rad1 {[%emt 0:00:17]} Bb4 {[%emt 0:00:00]} 21. Re3 {[%emt 0:00:38]} Be6 {[%emt 0:00:00]} 22. Qb5 {[%emt 0:00:12]} a6 {[%emt 0:00:00]} 23. Qe2 {[%emt 0:00:06]} Bg4 {[%emt 0:00:00]} 24. Red3 {[%emt 0:00:20]} Nc5 {[%emt 0:00:00]} 25. Rd5 {[%emt 0:00:03]} Nd7 {[%emt 0:00:00]} 26. h3 {[%emt 0:01:25]} Be6 {[%emt 0:00:00]} 27. R5d3 {[%emt 0:00:14]} Nc5 {[%emt 0:00:00]} 28. Rd6 {[%emt 0:00:01]} Nd7 {[%emt 0:00:00]} 29. R6d3 {[%emt 0:00:04]} Nc5 {[%emt 0:00:00]} 30. Rd6 {[%emt 0:00:01]} Nd7 {[%emt 0:00:00]} 31. Rc6 {[%emt 0:00:16]} b5 {[%emt 0:00:00]} 32. Qc2 {[%emt 0:00:41]} Ba5 {[%emt 0:00:00]} 33. Bc3 {[%emt 0:00:33]} b4 {[%emt 0:00:00]} 34. Bxe5 {[%emt 0:00:30]} Nxe5 {[%emt 0:00:13]} 35. Nxe5 {[%emt 0:00:02]} Rac8 {[%emt 0:00:21]} 36. Rc1 {[%emt 0:00:36]} Rcd8 {[%emt 0:01:00]} 37. Qc5 {[%emt 0:00:20]} 1-0

[Event "NSV Open-ch Rapid 2019"]
[Site "Lueneburg"]
[Date "2019.08.03"]
[Round "5.14"]
[White "Rempe, Jonas"]
[Black "Daemmig, Matthias"]
[Result "0-1"]
[ECO "B29"]
[WhiteElo "1839"]
[BlackElo "2059"]
[Annotator "NA RC"]
[PlyCount "46"]
[EventDate "2019.08.03"]
[EventType "swiss"]
[EventCountry "GER"]
[SourceTitle "playchess.com"]
[Source "ChessBase"]
[SourceQuality "1"]
[TimeControl "600+5"]

1. e4 {[%emt 0:00:00]} c5 {[%emt 0:00:00]} 2. Nf3 {[%emt 0:00:00]} Nf6 {[%emt 0:00:00]} 3. Nc3 {[%emt 0:00:05]} d5 {[%emt 0:00:00]} 4. e5 {[%emt 0:00:16]} Nfd7 {[%emt 0:00:07]} 5. Nxd5 {[%emt 0:00:04]} Nxe5 {[%emt 0:00:01]} 6. Bb5+ {[%emt 0:00:16]} Nbc6 {[%emt 0:00:04]} 7. Nxe5 {[%emt 0:01:24]} Qxd5 {[%emt 0:00:02]} 8. Qe2 {[%emt 0:00:27]} Qxg2 {[%emt 0:01:24]} 9. Rf1 {[%emt 0:00:35]} Bh3 {[%emt 0:00:44]} 10. Qe3 {[%emt 0:02:31]} e6 {[%emt 0:00:24]} 11. Nxc6 {[%emt 0:00:08]} bxc6 {[%emt 0:00:03]} 12. Bxc6+ {[%emt 0:00:02]} Qxc6 {[%emt 0:00:02]} 13. Qxh3 {[%emt 0:00:01]} Be7 {[%emt 0:00:22]} 14. d3 {[%emt 0:00:13]} Bf6 {[%emt 0:00:04]} 15. c3 {[%emt 0:00:17]} Rd8 {[%emt 0:00:07]} 16. Bd2 {[%emt 0:00:29]} Qb5 {[%emt 0:00:15]} 17. O-O-O {[%emt 0:00:22]} Rxd3 {[%emt 0:00:57]} 18. Qg2 {[%emt 0:00:07]} O-O {[%emt 0:00:07]} 19. Rg1 {[%emt 0:00:27]} Rb8 {[%emt 0:00:11]} 20. Kc2 {[%emt 0:01:16]} c4 {[%emt 0:00:37]} 21. Rb1 {[%emt 0:00:16]} Qa4+ {[%emt 0:00:53]} 22. b3 {[%emt 0:00:10]} Qxa2+ {[%emt 0:00:02]} 23. Rb2 {[%emt 0:00:11]} Rxd2+ {[%emt 0:00:01]} 0-1

[Event "NSV Open-ch Rapid 2019"]
[Site "Lueneburg"]
[Date "2019.08.04"]
[Round "5.16"]
[White "Reimers, Achim"]
[Black "Serrer, David"]
[Result "1-0"]
[ECO "A48"]
[WhiteElo "1975"]
[BlackElo "1516"]
[Annotator "NA RC"]
[PlyCount "82"]
[EventDate "2019.08.03"]
[EventType "swiss"]
[EventCountry "GER"]
[SourceTitle "playchess.com"]
[Source "ChessBase"]
[SourceQuality "1"]
[TimeControl "600+5"]

1. d4 {[%emt 0:00:00]} Nf6 {[%emt 0:00:00]} 2. c3 {[%emt 0:00:00]} g6 {[%emt 0:00:03]} 3. Bf4 {[%emt 0:00:02]} Bg7 {[%emt 0:00:01]} 4. e3 {[%emt 0:00:01]} O-O {[%emt 0:00:06]} 5. h3 {[%emt 0:00:05]} d6 {[%emt 0:00:05]} 6. Nf3 {[%emt 0:00:02]} Bf5 {[%emt 0:00:13]} 7. Be2 {[%emt 0:00:03]} Nbd7 {[%emt 0:00:02]} 8. O-O {[%emt 0:00:03]} c5 {[%emt 0:00:01]} 9. Nbd2 {[%emt 0:00:04]} Nb6 {[%emt 0:00:27]} 10. Rc1 {[%emt 0:00:15]} Rc8 {[%emt 0:00:04]} 11. Re1 {[%emt 0:00:31]} Ne4 {[%emt 0:00:08]} 12. Nxe4 {[%emt 0:00:07]} Bxe4 {[%emt 0:00:03]} 13. Bd3 {[%emt 0:00:37]} Bxd3 {[%emt 0:00:20]} 14. Qxd3 {[%emt 0:00:07]} c4 {[%emt 0:00:38]} 15. Qc2 {[%emt 0:00:06]} d5 {[%emt 0:00:15]} 16. e4 {[%emt 0:00:19]} e6 {[%emt 0:00:12]} 17. exd5 {[%emt 0:00:29]} Nxd5 {[%emt 0:00:02]} 18. Qd2 {[%emt 0:00:36]} Nxf4 {[%emt 0:00:56]} 19. Qxf4 {[%emt 0:00:03]} Qc7 {[%emt 0:00:05]} 20. Qd2 {[%emt 0:00:20]} b5 {[%emt 0:00:11]} 21. Re2 {[%emt 0:00:04]} Qa5 {[%emt 0:00:44]} 22. a3 {[%emt 0:00:02]} Rcd8 {[%emt 0:00:36]} 23. Rce1 {[%emt 0:00:02]} Qb6 {[%emt 0:01:11]} 24. Qg5 {[%emt 0:00:43]} Qb8 {[%emt 0:01:00]} 25. Qh4 {[%emt 0:00:15]} h6 {[%emt 0:01:01]} 26. Ne5 {[%emt 0:00:20]} Bxe5 {[%emt 0:00:28]} 27. Rxe5 {[%emt 0:00:06]} Kg7 {[%emt 0:00:42]} 28. R1e3 {[%emt 0:00:35]} Rd5 {[%emt 0:00:07]} 29. f4 {[%emt 0:00:40]} Rxe5 {[%emt 0:00:35]} 30. fxe5 {[%emt 0:00:09]} Qd8 {[%emt 0:00:07]} 31. Qf4 {[%emt 0:00:18]} Qg5 {[%emt 0:00:20]} 32. Qe4 {[%emt 0:00:13]} a5 {[%emt 0:00:20]} 33. Re2 {[%emt 0:00:52]} Rb8 {[%emt 0:00:20]} 34. Rf2 {[%emt 0:00:16]} b4 {[%emt 0:00:04]} 35. axb4 {[%emt 0:00:19]} axb4 {[%emt 0:00:03]} 36. d5 {[%emt 0:01:37]} exd5 {[%emt 0:00:26]} 37. Qxd5 {[%emt 0:00:06]} Qe7 {[%emt 0:00:57]} 38. Qd4 {[%emt 0:00:29]} Rd8 {[%emt 0:00:01]} 39. Qxc4 {[%emt 0:00:54]} Rd1+ {[%emt 0:00:00]} 40. Kh2 {[%emt 0:00:02]} Qxe5+ {[%emt 0:00:01]} 41. Qf4 {[%emt 0:00:01]} Qxf4+ {[%emt 0:00:02]} 1-0

[Event "NSV Open-ch Rapid 2019"]
[Site "Lueneburg"]
[Date "2019.08.03"]
[Round "5.18"]
[White "Marzik, Arne"]
[Black "Schulz, Daniel"]
[Result "0-1"]
[ECO "D78"]
[WhiteElo "1366"]
[BlackElo "2071"]
[Annotator "NA RC"]
[PlyCount "59"]
[EventDate "2019.08.03"]
[EventType "swiss"]
[EventCountry "GER"]
[SourceTitle "playchess.com"]
[Source "ChessBase"]
[SourceQuality "1"]
[TimeControl "600+5"]

1. d4 {[%emt 0:00:00]} g6 {[%emt 0:00:00]} 2. Nf3 {[%emt 0:00:00]} Bg7 {[%emt 0:00:00]} 3. g3 {[%emt 0:00:00]} Nf6 {[%emt 0:00:02]} 4. Bg2 {[%emt 0:00:01]} O-O {[%emt 0:00:01]} 5. O-O {[%emt 0:00:02]} d5 {[%emt 0:00:01]} 6. c4 {[%emt 0:00:09]} c6 {[%emt 0:00:02]} 7. Nc3 {[%emt 0:00:07]} dxc4 {[%emt 0:00:02]} 8. e4 {[%emt 0:00:27]} b5 {[%emt 0:00:33]} 9. a4 {[%emt 0:00:07]} b4 {[%emt 0:00:21]} 10. e5 {[%emt 0:01:50]} bxc3 {[%emt 0:01:39]} 11. exf6 {[%emt 0:00:04]} cxb2 {[%emt 0:00:04]} 12. Bxb2 {[%emt 0:00:06]} exf6 {[%emt 0:00:16]} 13. Nd2 {[%emt 0:00:32]} Be6 {[%emt 0:00:04]} 14. Bc3 {[%emt 0:01:05]} Bd5 {[%emt 0:00:14]} 15. Bh3 {[%emt 0:01:24]} Na6 {[%emt 0:00:47]} 16. Re1 {[%emt 0:01:48]} Rb8 {[%emt 0:00:34]} 17. a5 {[%emt 0:00:12]} Nb4 {[%emt 0:00:11]} 18. Ra4 {[%emt 0:01:12]} Qd6 {[%emt 0:01:00]} 19. Ne4 {[%emt 0:00:31]} Bxe4 {[%emt 0:00:01]} 20. Rxe4 {[%emt 0:00:02]} f5 {[%emt 0:00:10]} 21. Re2 {[%emt 0:01:07]} Nd5 {[%emt 0:01:17]} 22. Rxc4 {[%emt 0:00:56]} Nxc3 {[%emt 0:00:03]} 23. Rxc3 {[%emt 0:00:02]} Bxd4 {[%emt 0:00:19]} 24. Rc4 {[%emt 0:00:08]} c5 {[%emt 0:00:14]} 25. Bg2 {[%emt 0:00:04]} Rfe8 {[%emt 0:00:43]} 26. Rxe8+ {[%emt 0:00:04]} Rxe8 {[%emt 0:00:02]} 27. Qa4 {[%emt 0:00:09]} Re2 {[%emt 0:00:49]} 28. Bf1 {[%emt 0:00:02]} Rxf2 {[%emt 0:00:45]} 29. Qe8+ {[%emt 0:00:02]} Kg7 {[%emt 0:00:09]} 30. Bg2 {[%emt 0:00:17]} 0-1